fUSD/lending_fUSD_20260601
["ID","MTS","AMOUNT","RATE_DAILY","PERIOD"]
[423680519,1780300242000,-706.02,0.00013698,2]
[423680520,1780300242000,-706.02,0.00013698,2]
[423680523,1780300242000,-706.02,0.00013698,2]
[423680521,1780300242000,-706.02,0.00013698,2]
[423680526,1780300242000,-500.0,0.00013698,2]
[423680525,1780300242000,-706.02,0.00013698,2]
[423680524,1780300242000,-706.02,0.00013698,2]
[423680527,1780300242000,-500.0,0.00013698,2]
[423680522,1780300242000,-706.02,0.00013698,2]
[423680528,1780300242000,-500.0,0.00013698,2]
[423680531,1780300242000,-500.0,0.00013698,2]
[423680529,1780300242000,-500.0,0.00013698,2]
[423680533,1780300242000,-500.0,0.00013698,2]
[423680517,1780300242000,-706.02,0.00013698,2]
[423680530,1780300242000,-500.0,0.00013698,2]
[423680535,1780300242000,-500.0,0.00013698,2]
[423680536,1780300242000,-500.0,0.00013698,2]
[423680534,1780300242000,-500.0,0.00013698,2]
[423680539,1780300242000,-500.0,0.00013698,2]
[423680537,1780300242000,-500.0,0.00013698,2]
[423680538,1780300242000,-500.0,0.00013698,2]
[423680540,1780300242000,-500.0,0.00013698,2]
[423680542,1780300242000,-500.0,0.00013698,2]
[423680541,1780300242000,-500.0,0.00013698,2]
[423680543,1780300242000,-500.0,0.00013698,2]
[423680480,1780300242000,-500.0,0.00013698,2]
[423680544,1780300242000,-500.0,0.00013698,2]
[423680545,1780300242000,-500.0,0.00013698,2]
[423680547,1780300242000,-500.0,0.00013698,2]
[423680532,1780300242000,-500.0,0.00013698,2]
[423680515,1780300242000,-706.02,0.00013698,2]
[423680546,1780300242000,-500.0,0.00013698,2]
[423680512,1780300242000,-737.59,0.00013698,2]
[423680516,1780300242000,-737.59,0.00013698,2]
[423680485,1780300242000,-500.0,0.00013698,2]
[423680487,1780300242000,-500.0,0.00013698,2]
[423680489,1780300242000,-500.0,0.00013698,2]
[423680488,1780300242000,-500.0,0.00013698,2]
[423680491,1780300242000,-244.44643785,0.00013698,2]
[423680493,1780300242000,-500.0,0.00013698,2]
[423680492,1780300242000,-500.0,0.00013698,2]
[423680490,1780300242000,-500.0,0.00013698,2]
[423680495,1780300242000,-500.0,0.00013698,2]
[423680494,1780300242000,-500.0,0.00013698,2]
[423680498,1780300242000,-500.0,0.00013698,2]
[423680499,1780300242000,-500.0,0.00013698,2]
[423680497,1780300242000,-500.0,0.00013698,2]
[423680483,1780300242000,-500.0,0.00013698,2]
[423680496,1780300242000,-500.0,0.00013698,2]
[423680500,1780300242000,-500.0,0.00013698,2]
[423680514,1780300242000,-737.59,0.00013698,2]
[423680509,1780300242000,-706.02,0.00013698,2]
[423680507,1780300242000,-737.59,0.00013698,2]
[423680513,1780300242000,-706.02,0.00013698,2]
[423680510,1780300242000,-737.59,0.00013698,2]
[423680511,1780300242000,-706.02,0.00013698,2]
[423680506,1780300242000,-737.59,0.00013698,2]
[423680502,1780300242000,-500.0,0.00013698,2]
[423680505,1780300242000,-737.59,0.00013698,2]
[423680503,1780300242000,-737.59,0.00013698,2]
[423680501,1780300242000,-500.0,0.00013698,2]
[423680504,1780300242000,-737.59,0.00013698,2]
[423680508,1780300242000,-737.59,0.00013698,2]
[423680596,1780300243000,-500.0,0.00013698,2]
[423680599,1780300243000,-500.0,0.00013698,2]
[423680601,1780300243000,-500.0,0.00013698,2]
[423680600,1780300243000,-500.0,0.00013698,2]
[423680582,1780300243000,-500.0,0.00013698,2]
[423680580,1780300243000,-500.0,0.00013698,2]
[423680579,1780300243000,-500.0,0.00013698,2]
[423680578,1780300243000,-500.0,0.00013698,2]
[423680584,1780300243000,-500.0,0.00013698,2]
[423680592,1780300243000,-500.0,0.00013698,2]
[423680589,1780300243000,-500.0,0.00013698,2]
[423680581,1780300243000,-500.0,0.00013698,2]
[423680603,1780300243000,-500.0,0.00013698,2]
[423680594,1780300243000,-500.0,0.00013698,2]
[423680604,1780300243000,-500.0,0.00013698,2]
[423680602,1780300243000,-500.0,0.00013698,2]
[423680605,1780300243000,-500.0,0.00013698,2]
[423680606,1780300243000,-500.0,0.00013698,2]
[423680607,1780300243000,-500.0,0.00013698,2]
[423680613,1780300243000,-171.0,0.00013698,2]
[423680610,1780300243000,-500.0,0.00013698,2]
[423680612,1780300243000,-319.20799015,0.00013698,2]
[423680614,1780300243000,-171.0,0.00013698,2]
[423680611,1780300243000,-500.0,0.00013698,2]
[423680609,1780300243000,-500.0,0.00013698,2]
[423680586,1780300243000,-500.0,0.00013698,2]
[423680598,1780300243000,-500.0,0.00013698,2]
[423680575,1780300243000,-500.0,0.00013698,2]
[423680562,1780300243000,-500.0,0.00013698,2]
[423680571,1780300243000,-502.85146207,0.00013698,2]
[423680549,1780300243000,-500.0,0.00013698,2]
[423680553,1780300243000,-500.0,0.00013698,2]
[423680548,1780300243000,-500.0,0.00013698,2]
[423680550,1780300243000,-500.0,0.00013698,2]
[423680552,1780300243000,-500.0,0.00013698,2]
[423680551,1780300243000,-500.0,0.00013698,2]
[423680557,1780300243000,-500.0,0.00013698,2]
[423680554,1780300243000,-500.0,0.00013698,2]
[423680555,1780300243000,-500.0,0.00013698,2]
[423680558,1780300243000,-500.0,0.00013698,2]
[423680556,1780300243000,-500.0,0.00013698,2]
[423680560,1780300243000,-500.0,0.00013698,2]
[423680576,1780300243000,-500.0,0.00013698,2]
[423680561,1780300243000,-500.0,0.00013698,2]
[423680564,1780300243000,-500.0,0.00013698,2]
[423680563,1780300243000,-500.0,0.00013698,2]
[423680565,1780300243000,-500.0,0.00013698,2]
[423680567,1780300243000,-159.50519724,0.00013698,2]
[423680566,1780300243000,-500.0,0.00013698,2]
[423680570,1780300243000,-500.0,0.00013698,2]
[423680569,1780300243000,-500.0,0.00013698,2]
[423680568,1780300243000,-500.0,0.00013698,2]
[423680572,1780300243000,-500.0,0.00013698,2]
[423680577,1780300243000,-500.0,0.00013698,2]
[423680573,1780300243000,-500.0,0.00013698,2]
[423680574,1780300243000,-500.0,0.00013698,2]
[423680559,1780300243000,-166.245757,0.00013698,2]
[423680608,1780300243000,-500.0,0.00013698,2]
[423680616,1780300243000,-171.0,0.00013698,2]
[423680615,1780300243000,-171.0,0.00013698,2]
[423680648,1780300243000,-706.02,0.00013699,2]
[423680649,1780300243000,-258.84484767,0.00013699,2]
[423680651,1780300243000,-2277.6826362,0.00013699,2]
[423680652,1780300243000,-2277.6826362,0.00013699,2]
[423680653,1780300243000,-2277.6826362,0.00013699,2]
[423680650,1780300243000,-2277.6826362,0.00013699,2]
[423680654,1780300243000,-2277.6826362,0.00013699,2]
[423680657,1780300243000,-2277.6826362,0.00013699,2]
[423680655,1780300243000,-2277.6826362,0.00013699,2]
[423680659,1780300243000,-2277.6826362,0.00013699,2]
[423680656,1780300243000,-2277.6826362,0.00013699,2]
[423680662,1780300243000,-2277.6826362,0.00013699,2]
[423680647,1780300243000,-1767.48,0.00013699,2]
[423680663,1780300243000,-2277.6826362,0.00013699,2]
[423680665,1780300243000,-2277.6826362,0.00013699,2]
[423680666,1780300243000,-2277.6826362,0.00013699,2]
[423680664,1780300243000,-2277.6826362,0.00013699,2]
[423680661,1780300243000,-2277.6826362,0.00013699,2]
[423680667,1780300243000,-2277.6826362,0.00013699,2]
[423680669,1780300243000,-2277.6826362,0.00013699,2]
[423680668,1780300243000,-2277.6826362,0.00013699,2]
[423680670,1780300243000,-2277.6826362,0.00013699,2]
[423680671,1780300243000,-2277.6826362,0.00013699,2]
[423680673,1780300243000,-2277.6826362,0.00013699,2]
[423680672,1780300243000,-2277.6826362,0.00013699,2]
[423680617,1780300243000,-174.95193931,0.00013698,2]
[423680660,1780300243000,-2277.6826362,0.00013699,2]
[423680646,1780300243000,-500.0,0.00013699,2]
[423680658,1780300243000,-2277.6826362,0.00013699,2]
[423680644,1780300243000,-753.19,0.00013699,2]
[423680642,1780300243000,-180.76,0.00013699,2]
[423680618,1780300243000,-500.0,0.00013698,2]
[423680621,1780300243000,-151.0,0.00013699,2]
[423680620,1780300243000,-509.92066561,0.00013698,2]
[423680625,1780300243000,-151.0,0.00013699,2]
[423680622,1780300243000,-151.0,0.00013699,2]
[423680623,1780300243000,-151.0,0.00013699,2]
[423680624,1780300243000,-151.0,0.00013699,2]
[423680626,1780300243000,-151.0,0.00013699,2]
[423680627,1780300243000,-151.0,0.00013699,2]
[423680628,1780300243000,-151.0,0.00013699,2]
[423680630,1780300243000,-151.0,0.00013699,2]
[423680632,1780300243000,-167.974207,0.00013699,2]
[423680619,1780300243000,-500.0,0.00013698,2]
[423680629,1780300243000,-151.0,0.00013699,2]
[423680631,1780300243000,-151.0,0.00013699,2]
[423680643,1780300243000,-150.63,0.00013699,2]
[423680641,1780300243000,-216.91,0.00013699,2]
[423680635,1780300243000,-336.44,0.00013699,2]
[423680640,1780300243000,-2500.0,0.00013699,2]
[423680636,1780300243000,-449.79,0.00013699,2]
[423680645,1780300243000,-354.74978975,0.00013699,2]
[423680634,1780300243000,-166.66,0.00013699,2]
[423680638,1780300243000,-312.35,0.00013699,2]
[423680639,1780300243000,-260.29,0.00013699,2]
[423680633,1780300243000,-200.0,0.00013699,2]
[423680637,1780300243000,-374.82,0.00013699,2]
[423680715,1780300244000,-2242.093845,0.00013699,2]
[423680713,1780300244000,-2242.093845,0.00013699,2]
[423680712,1780300244000,-2242.093845,0.00013699,2]
[423680701,1780300244000,-2277.6826362,0.00013699,2]
[423680708,1780300244000,-2242.093845,0.00013699,2]
[423680711,1780300244000,-2242.093845,0.00013699,2]
[423680707,1780300244000,-2277.6826362,0.00013699,2]
[423680709,1780300244000,-2242.093845,0.00013699,2]
[423680702,1780300244000,-2277.6826362,0.00013699,2]
[423680716,1780300244000,-2242.093845,0.00013699,2]
[423680710,1780300244000,-2242.093845,0.00013699,2]
[423680717,1780300244000,-2242.093845,0.00013699,2]
[423680721,1780300244000,-2242.093845,0.00013699,2]
[423680714,1780300244000,-2242.093845,0.00013699,2]
[423680722,1780300244000,-2242.093845,0.00013699,2]
[423680723,1780300244000,-2242.093845,0.00013699,2]
[423680719,1780300244000,-2242.093845,0.00013699,2]
[423680724,1780300244000,-2242.093845,0.00013699,2]
[423680720,1780300244000,-2242.093845,0.00013699,2]
[423680728,1780300244000,-2242.093845,0.00013699,2]
[423680725,1780300244000,-2242.093845,0.00013699,2]
[423680729,1780300244000,-2242.093845,0.00013699,2]
[423680726,1780300244000,-2242.093845,0.00013699,2]
[423680727,1780300244000,-2242.093845,0.00013699,2]
[423680705,1780300244000,-2277.6826362,0.00013699,2]
[423680718,1780300244000,-2242.093845,0.00013699,2]
[423680700,1780300244000,-2277.6826362,0.00013699,2]
[423680674,1780300244000,-2277.6826362,0.00013699,2]
[423680703,1780300244000,-2277.6826362,0.00013699,2]
[423680731,1780300244000,-2242.093845,0.00013699,2]
[423680675,1780300244000,-2277.6826362,0.00013699,2]
[423680676,1780300244000,-2277.6826362,0.00013699,2]
[423680677,1780300244000,-2277.6826362,0.00013699,2]
[423680678,1780300244000,-2277.6826362,0.00013699,2]
[423680679,1780300244000,-2277.6826362,0.00013699,2]
[423680680,1780300244000,-2277.6826362,0.00013699,2]
[423680681,1780300244000,-2277.6826362,0.00013699,2]
[423680685,1780300244000,-2277.6826362,0.00013699,2]
[423680682,1780300244000,-2277.6826362,0.00013699,2]
[423680683,1780300244000,-2277.6826362,0.00013699,2]
[423680686,1780300244000,-2277.6826362,0.00013699,2]
[423680684,1780300244000,-2277.6826362,0.00013699,2]
[423680687,1780300244000,-2277.6826362,0.00013699,2]
[423680689,1780300244000,-2277.6826362,0.00013699,2]
[423680688,1780300244000,-2277.6826362,0.00013699,2]
[423680692,1780300244000,-2277.6826362,0.00013699,2]
[423680693,1780300244000,-2277.6826362,0.00013699,2]
[423680690,1780300244000,-2277.6826362,0.00013699,2]
[423680691,1780300244000,-2277.6826362,0.00013699,2]
[423680694,1780300244000,-2277.6826362,0.00013699,2]
[423680697,1780300244000,-2277.6826362,0.00013699,2]
[423680695,1780300244000,-2277.6826362,0.00013699,2]
[423680699,1780300244000,-2277.6826362,0.00013699,2]
[423680696,1780300244000,-2277.6826362,0.00013699,2]
[423680698,1780300244000,-2277.6826362,0.00013699,2]
[423680704,1780300244000,-2277.6826362,0.00013699,2]
[423680706,1780300244000,-2277.6826362,0.00013699,2]
[423680732,1780300244000,-2242.093845,0.00013699,2]
[423680730,1780300244000,-2242.093845,0.00013699,2]
[423680734,1780300244000,-2242.093845,0.00013699,2]
[423680766,1780300244000,-150.0,0.00013707,2]
[423680765,1780300244000,-150.0,0.00013702,2]
[423680767,1780300244000,-150.0,0.00013708,2]
[423680770,1780300244000,-150.0,0.00013718,2]
[423680769,1780300244000,-323.50187327,0.00013715,2]
[423680772,1780300244000,-150.0,0.00013741,2]
[423680771,1780300244000,-323.50187327,0.0001373,2]
[423680774,1780300244000,-323.50187327,0.00013745,2]
[423680773,1780300244000,-150.0,0.00013744,2]
[423680776,1780300244000,-150.0,0.0001376,2]
[423680777,1780300244000,-323.50187327,0.0001376,2]
[423680775,1780300244000,-150.0,0.00013752,2]
[423680768,1780300244000,-150.0,0.00013715,2]
[423680778,1780300244000,-150.0,0.00013764,2]
[423680782,1780300244000,-150.0,0.00013787,2]
[423680785,1780300244000,-150.0,0.00013796,2]
[423680783,1780300244000,-150.0,0.00013787,2]
[423680784,1780300244000,-323.50187327,0.0001379,2]
[423680781,1780300244000,-150.0,0.0001378,2]
[423680787,1780300244000,-323.50187327,0.00013806,2]
[423680786,1780300244000,-150.0,0.00013806,2]
[423680788,1780300244000,-150.0,0.0001381,2]
[423680791,1780300244000,-150.0,0.00013834,2]
[423680789,1780300244000,-150.0,0.00013817,2]
[423680790,1780300244000,-323.50187327,0.00013821,2]
[423680733,1780300244000,-2242.093845,0.00013699,2]
[423680779,1780300244000,-150.0,0.00013773,2]
[423680764,1780300244000,-238.327963,0.000137,2]
[423680780,1780300244000,-323.50187327,0.00013775,2]
[423680761,1780300244000,-238.327963,0.000137,2]
[423680735,1780300244000,-2242.093845,0.00013699,2]
[423680760,1780300244000,-151.0,0.000137,2]
[423680736,1780300244000,-2242.093845,0.00013699,2]
[423680737,1780300244000,-2242.093845,0.00013699,2]
[423680738,1780300244000,-2242.093845,0.00013699,2]
[423680741,1780300244000,-500.0,0.00013699,2]
[423680740,1780300244000,-500.0,0.00013699,2]
[423680739,1780300244000,-2242.09384515,0.00013699,2]
[423680745,1780300244000,-500.0,0.00013699,2]
[423680742,1780300244000,-500.0,0.00013699,2]
[423680743,1780300244000,-500.0,0.00013699,2]
[423680744,1780300244000,-500.0,0.00013699,2]
[423680747,1780300244000,-500.0,0.00013699,2]
[423680748,1780300244000,-500.0,0.00013699,2]
[423680746,1780300244000,-500.0,0.00013699,2]
[423680762,1780300244000,-238.327963,0.000137,2]
[423680763,1780300244000,-238.327963,0.000137,2]
[423680749,1780300244000,-500.0,0.00013699,2]
[423680759,1780300244000,-152.594755,0.000137,2]
[423680758,1780300244000,-78111.39343958,0.000137,2]
[423680755,1780300244000,-500.0,0.00013699,2]
[423680756,1780300244000,-364.24573169,0.00013699,2]
[423680757,1780300244000,-323.50187327,0.000137,2]
[423680751,1780300244000,-500.0,0.00013699,2]
[423680753,1780300244000,-500.0,0.00013699,2]
[423680752,1780300244000,-500.0,0.00013699,2]
[423680750,1780300244000,-500.0,0.00013699,2]
[423680754,1780300244000,-500.0,0.00013699,2]
[423680828,1780300245000,-166.66,0.00013973,2]
[423680834,1780300245000,-500.0,0.00013989,2]
[423680833,1780300245000,-500.0,0.00013989,2]
[423680830,1780300245000,-150.0,0.00013987,2]
[423680832,1780300245000,-323.50187327,0.00013987,2]
[423680823,1780300245000,-323.50187327,0.00013957,2]
[423680829,1780300245000,-519.2,0.00013984,2]
[423680827,1780300245000,-150.0,0.00013973,2]
[423680824,1780300245000,-150.0,0.00013963,2]
[423680821,1780300245000,-10000.0,0.00013945,2]
[423680839,1780300245000,-500.0,0.00013989,2]
[423680831,1780300245000,-150.0,0.00013987,2]
[423680838,1780300245000,-838.99,0.00013989,2]
[423680850,1780300245000,-323.50187327,0.00014002,2]
[423680837,1780300245000,-813.78,0.00013989,2]
[423680835,1780300245000,-534.02,0.00013989,2]
[423680840,1780300245000,-500.0,0.00013989,2]
[423680844,1780300245000,-500.0,0.00013989,2]
[423680845,1780300245000,-500.0,0.00013989,2]
[423680843,1780300245000,-737.59,0.00013989,2]
[423680842,1780300245000,-500.0,0.00013989,2]
[423680841,1780300245000,-500.0,0.00013989,2]
[423680846,1780300245000,-60000.0,0.0001399,2]
[423680847,1780300245000,-150.0,0.00013995,2]
[423680849,1780300245000,-250.0,0.00014,2]
[423680848,1780300245000,-150.0,0.00013999,2]
[423680826,1780300245000,-323.50187327,0.00013972,2]
[423680836,1780300245000,-5336.71,0.00013989,2]
[423680822,1780300245000,-150.0,0.00013949,2]
[423680792,1780300245000,-166.66,0.00013836,2]
[423680820,1780300245000,-323.50187327,0.00013942,2]
[423680793,1780300245000,-323.50187327,0.00013836,2]
[423680794,1780300245000,-150.0,0.0001384,2]
[423680796,1780300245000,-150.0,0.00013851,2]
[423680797,1780300245000,-323.50187327,0.00013851,2]
[423680798,1780300245000,-150.0,0.00013853,2]
[423680795,1780300245000,-150.0,0.00013844,2]
[423680799,1780300245000,-150.0,0.00013857,2]
[423680800,1780300245000,-150.0,0.00013862,2]
[423680802,1780300245000,-323.50187327,0.00013866,2]
[423680806,1780300245000,-150.0,0.0001389,2]
[423680803,1780300245000,-150.0,0.0001388,2]
[423680804,1780300245000,-323.50187327,0.00013881,2]
[423680805,1780300245000,-150.0,0.00013884,2]
[423680825,1780300245000,-150.0,0.00013972,2]
[423680801,1780300245000,-150.0,0.00013862,2]
[423680808,1780300245000,-323.50187327,0.00013896,2]
[423680807,1780300245000,-150.0,0.00013896,2]
[423680811,1780300245000,-4609.0,0.00013903,2]
[423680812,1780300245000,-1252.0,0.00013905,2]
[423680810,1780300245000,-1152.0,0.00013903,2]
[423680813,1780300245000,-323.50187327,0.00013912,2]
[423680809,1780300245000,-150.0,0.00013903,2]
[423680815,1780300245000,-150.0,0.00013926,2]
[423680817,1780300245000,-323.50187327,0.00013927,2]
[423680814,1780300245000,-150.0,0.00013916,2]
[423680816,1780300245000,-150.0,0.00013926,2]
[423680818,1780300245000,-150.0,0.00013928,2]
[423680819,1780300245000,-150.0,0.00013942,2]
[423680851,1780300245000,-150.0,0.00014017,2]
[423680852,1780300245000,-323.50187327,0.00014017,2]
[423680901,1780300245000,-150.0,0.00014169,2]
[423680853,1780300245000,-150.0,0.00014018,2]
[423680887,1780300245000,-150.0,0.00014109,2]
[423680888,1780300245000,-166.66,0.0001411,2]
[423680889,1780300245000,-150.0,0.0001411,2]
[423680892,1780300245000,-323.50187327,0.00014123,2]
[423680893,1780300245000,-150.0,0.0001413,2]
[423680891,1780300245000,-150.0,0.00014123,2]
[423680890,1780300245000,-16065.72523402,0.00014114,2]
[423680894,1780300245000,-150.0,0.00014133,2]
[423680896,1780300245000,-150.0,0.00014146,2]
[423680895,1780300245000,-323.50187327,0.00014139,2]
[423680897,1780300245000,-167.05796504,0.00014148,2]
[423680898,1780300245000,-150.0,0.00014149,2]
[423680899,1780300245000,-323.50187327,0.00014154,2]
[423680884,1780300245000,-150.0,0.00014105,2]
[423680900,1780300245000,-150.0,0.00014156,2]
[423680904,1780300245000,-150.0,0.00014182,2]
[423680902,1780300245000,-323.50187327,0.00014169,2]
[423680906,1780300245000,-150.0,0.00014193,2]
[423680903,1780300245000,-150.0,0.00014179,2]
[423680911,1780300245000,-500.0,0.00014205,2]
[423680907,1780300245000,-323.50187327,0.00014199,2]
[423680909,1780300245000,-150.0,0.00014201,2]
[423680908,1780300245000,-161.0,0.000142,2]
[423680913,1780300245000,-1767.48,0.00014205,2]
[423680912,1780300245000,-500.0,0.00014205,2]
[423680910,1780300245000,-150.0,0.00014202,2]
[423680915,1780300245000,-1767.48,0.00014205,2]
[423680916,1780300245000,-737.59,0.00014205,2]
[423680905,1780300245000,-323.50187327,0.00014184,2]
[423680886,1780300245000,-500.0,0.00014109,10]
[423680854,1780300245000,-150.0,0.00014033,2]
[423680883,1780300245000,-3768.07669719,0.00014096,2]
[423680858,1780300245000,-164.17568467,0.00014044,2]
[423680856,1780300245000,-150.0,0.00014036,2]
[423680857,1780300245000,-150.0,0.00014041,2]
[423680855,1780300245000,-323.50187327,0.00014033,2]
[423680859,1780300245000,-500.0,0.00014044,2]
[423680862,1780300245000,-534.02,0.00014044,2]
[423680861,1780300245000,-500.0,0.00014044,2]
[423680885,1780300245000,-323.50187327,0.00014108,2]
[423680863,1780300245000,-5336.71,0.00014044,2]
[423680860,1780300245000,-500.0,0.00014044,2]
[423680866,1780300245000,-500.0,0.00014044,2]
[423680867,1780300245000,-500.0,0.00014044,2]
[423680868,1780300245000,-500.0,0.00014044,2]
[423680869,1780300245000,-500.0,0.00014044,2]
[423680864,1780300245000,-813.78,0.00014044,2]
[423680870,1780300245000,-500.0,0.00014044,2]
[423680865,1780300245000,-838.99,0.00014044,2]
[423680880,1780300245000,-150.0,0.00014087,2]
[423680882,1780300245000,-323.50187327,0.00014093,2]
[423680881,1780300245000,-150.0,0.00014087,2]
[423680877,1780300245000,-150.0,0.00014073,2]
[423680878,1780300245000,-150.0,0.00014078,2]
[423680879,1780300245000,-323.50187327,0.00014078,2]
[423680876,1780300245000,-150.0,0.00014064,2]
[423680874,1780300245000,-150.0,0.00014061,2]
[423680873,1780300245000,-150.0,0.00014059,2]
[423680872,1780300245000,-150.0,0.0001405,2]
[423680871,1780300245000,-323.50187327,0.00014048,2]
[423680875,1780300245000,-323.50187327,0.00014063,2]
[423680958,1780300246000,-500.0,0.00014205,2]
[423680962,1780300246000,-500.0,0.00014205,2]
[423680957,1780300246000,-500.0,0.00014205,2]
[423680959,1780300246000,-500.0,0.00014205,2]
[423680955,1780300246000,-500.0,0.00014205,2]
[423680947,1780300246000,-500.0,0.00014205,2]
[423680956,1780300246000,-500.0,0.00014205,2]
[423680953,1780300246000,-500.0,0.00014205,2]
[423680951,1780300246000,-500.0,0.00014205,2]
[423680952,1780300246000,-500.0,0.00014205,2]
[423680949,1780300246000,-500.0,0.00014205,2]
[423680954,1780300246000,-500.0,0.00014205,2]
[423680960,1780300246000,-500.0,0.00014205,2]
[423680974,1780300246000,-500.0,0.00014205,2]
[423680963,1780300246000,-500.0,0.00014205,2]
[423680964,1780300246000,-500.0,0.00014205,2]
[423680965,1780300246000,-500.0,0.00014205,2]
[423680966,1780300246000,-500.0,0.00014205,2]
[423680969,1780300246000,-500.0,0.00014205,2]
[423680967,1780300246000,-500.0,0.00014205,2]
[423680968,1780300246000,-500.0,0.00014205,2]
[423680975,1780300246000,-500.0,0.00014205,2]
[423680971,1780300246000,-500.0,0.00014205,2]
[423680976,1780300246000,-500.0,0.00014205,2]
[423680970,1780300246000,-500.0,0.00014205,2]
[423680972,1780300246000,-500.0,0.00014205,2]
[423680973,1780300246000,-500.0,0.00014205,2]
[423680948,1780300246000,-500.0,0.00014205,2]
[423680961,1780300246000,-500.0,0.00014205,2]
[423680945,1780300246000,-500.0,0.00014205,2]
[423680933,1780300246000,-500.0,0.00014205,2]
[423680946,1780300246000,-500.0,0.00014205,2]
[423680977,1780300246000,-500.0,0.00014205,2]
[423680918,1780300246000,-706.02,0.00014205,2]
[423680917,1780300246000,-737.59,0.00014205,2]
[423680919,1780300246000,-706.02,0.00014205,2]
[423680921,1780300246000,-500.0,0.00014205,2]
[423680920,1780300246000,-500.0,0.00014205,2]
[423680922,1780300246000,-500.0,0.00014205,2]
[423680924,1780300246000,-500.0,0.00014205,2]
[423680923,1780300246000,-500.0,0.00014205,2]
[423680926,1780300246000,-500.0,0.00014205,2]
[423680925,1780300246000,-500.0,0.00014205,2]
[423680928,1780300246000,-500.0,0.00014205,2]
[423680927,1780300246000,-500.0,0.00014205,2]
[423680950,1780300246000,-500.0,0.00014205,2]
[423680930,1780300246000,-500.0,0.00014205,2]
[423680929,1780300246000,-500.0,0.00014205,2]
[423680936,1780300246000,-500.0,0.00014205,2]
[423680934,1780300246000,-500.0,0.00014205,2]
[423680937,1780300246000,-500.0,0.00014205,2]
[423680935,1780300246000,-500.0,0.00014205,2]
[423680932,1780300246000,-500.0,0.00014205,2]
[423680938,1780300246000,-500.0,0.00014205,2]
[423680940,1780300246000,-500.0,0.00014205,2]
[423680941,1780300246000,-500.0,0.00014205,2]
[423680939,1780300246000,-500.0,0.00014205,2]
[423680944,1780300246000,-500.0,0.00014205,2]
[423680943,1780300246000,-500.0,0.00014205,2]
[423680942,1780300246000,-500.0,0.00014205,2]
[423680931,1780300246000,-500.0,0.00014205,2]
[423680980,1780300246000,-307428.5007588,0.00014206,2]
[423680982,1780300246000,-151.0,0.00014206,2]
[423681050,1780300246000,-511.208149,0.000143,2]
[423681019,1780300246000,-78111.39343958,0.000143,2]
[423681022,1780300246000,-500.0,0.000143,2]
[423681025,1780300246000,-500.0,0.000143,2]
[423681024,1780300246000,-500.0,0.000143,2]
[423681026,1780300246000,-500.0,0.000143,2]
[423681027,1780300246000,-500.0,0.000143,2]
[423681030,1780300246000,-500.0,0.000143,2]
[423681028,1780300246000,-500.0,0.000143,2]
[423681029,1780300246000,-500.0,0.000143,2]
[423681031,1780300246000,-500.0,0.000143,2]
[423681032,1780300246000,-500.0,0.000143,2]
[423681033,1780300246000,-500.0,0.000143,2]
[423681035,1780300246000,-500.0,0.000143,2]
[423681023,1780300246000,-500.0,0.000143,2]